Cogmind - Beta 12 @@@ ROGUE MODE // 2023.10.23 @ 12:31:10 Player: Fleshy Vegetable Bird Result: Destroyed by H-55 Commando with Assault Rifle Performance ------------- Evolutions (3) 1500 Regions Visited (8) 1600 Robots Destroyed (120) 600 Value Destroyed (2698) 2698 Prototype IDs (11) 220 Alien Tech Used (0) 0 Bonus (12) 12 TOTAL SCORE: 6630 Bonus ------- High Alert Combat Kills 24 Follower Combat Kills 21 Friendly Fire -33 Cogmind --------- Core Integrity 0/700 Matter 107/300 Energy 17/100 System Corruption 28% Temperature Cool (0) Movement Hovering (116) Ox1 Location -7/Lower Caves Parts ------- > --- POWER (1) -------- (None) > --- PROPULSION (4) --- Improved Hover Unit Gravmag System Gravmag System Gravmag System > --- UTILITY (6) ------ Large Storage Unit Advanced Weight Redist. System Improved Terrain Scanner (fused) Advanced Terrain Scan Processor > --- WEAPON (2) ------- Impact Mace > --- INVENTORY (15) --- Wheel Experimental Sensor Array Improved Melee Analysis Suite Microactuators Actuator Array Improved Propulsion Shielding Insulated Plating Hacking Suite Hacking Suite System Shield Flak Gun Improved Grenade Launcher Impact Mace Katana Peak State ------------ > --- POWER ------------ Improved Deuterium Engine > --- PROPULSION ------- Wheel Wheel Wheel Wheel > --- UTILITY ---------- Huge Storage Unit Experimental Sensor Array Improved Signal Interpreter Advanced Targeting Computer Target Analyzer Hacking Suite > --- WEAPON ----------- Enhanced Autogun Impact Mace > --- INVENTORY -------- Light Angular Momentum Engine Improved Hover Unit Improved Hover Unit Improved Hover Unit Improved Hover Unit Gravmag System Gravmag System Large Storage Unit Advanced Weight Redist. System Experimental Sensor Array Improved Terrain Scanner Improved Terrain Scan Processor Improved Melee Analysis Suite Core Analyzer Microactuators Actuator Array Improved Propulsion Shielding Improved Light Armor Plating Insulated Plating Hacking Suite System Shield Proton Cannon Rocket Launcher Impact Mace Katana [Rating: 47] Favorites ----------- Power Light Nuclear Core Engine Ion Engine Power Core Light Nuclear Core Propulsion Wheel Treads Light Treads Wheel Wheel Hover Unit Gravmag System Utility Huge Storage Unit Device Experimental Sensor Array Storage Huge Storage Unit Processor Advanced Targeting Computer Hackware Hacking Suite Protection Improved Light Armor Plating Weapon Heavy Assault Rifle Ballistic Gun Heavy Assault Rifle Launcher Rocket Launcher Impact Weapon Impact Mace Slashing Weapon Blade Saw Build | -11 -10 -10 -10 -9 -8 -7 -7 -7 ------- Run | Jun Mat Min Exi Min Mat Fac Low Low Slots Evolved 6 | . . . . . 4 2 . . Power . | . . . . . . . . . Propulsion 2 | . . . . . 2 . . . Utility 4 | . . . . . 2 2 . . Weapon . | . . . . . . . . . Parts Attached 94 | 6 3 3 . . 21 39 12 10 Power 6 | 1 . . . . 1 3 . 1 Engine 3 | 1 . . . . . 1 . 1 Core 3 | . . . . . 1 2 . . Reactor . | . . . . . . . . . Propulsion 29 | 2 . 2 . . 9 8 1 7 Treads 1 | . . . . . . . 1 . Leg 1 | . . . . . . . . 1 Wheel 21 | 2 . 2 . . 9 8 . . Hover 6 | . . . . . . . . 6 Flight . | . . . . . . . . . Utility 32 | 1 1 . . . 4 20 4 2 Device 17 | . . . . . . 14 2 1 Storage 3 | 1 1 . . . . . . 1 Processor 4 | . . . . . 1 2 1 . Hackware 2 | . . . . . 1 . 1 . Protection 6 | . . . . . 2 4 . . Artifact . | . . . . . . . . . Weapon 27 | 2 2 1 . . 7 8 7 . Energy Gun . | . . . . . . . . . Energy Cannon . | . . . . . . . . . Ballistic Gun 16 | 2 2 1 . . 4 3 4 . Ballistic Cannon . | . . . . . . . . . Launcher 6 | . . . . . 3 1 2 . Special Weapon . | . . . . . . . . . Impact Weapon 4 | . . . . . . 3 1 . Slashing Weapon 1 | . . . . . . 1 . . Piercing Weapon . | . . . . . . . . . Special Melee Weapon . | . . . . . . . . . Unidentified Prototypes 2 | . . . . . 1 1 . . Parts Lost 37 | . . 1 . . 6 14 9 7 Power 5 | . . . . . . 3 1 1 Propulsion 21 | . . . . . 5 10 2 4 Utility 7 | . . . . . 1 . 5 1 Weapon 4 | . . 1 . . . 1 1 1 Highest Loss Streak 7 | . . 1 . . 3 3 7 7 To Critical Strikes 1 | . . . . . . . 1 . Average Slot Usage (%) 83 | . 85 84 85 85 86 91 61 58 Engine 5 | . 14 14 14 14 . 2 2 . Core 2 | . . . . . 8 3 . . Wheel 23 | . 28 28 28 28 31 23 4 . Device 3 | . . . . . . 5 11 14 Storage 9 | . 14 14 14 14 9 7 7 7 Processor 10 | . . . . . 8 21 11 7 Hackware 3 | . . . . . 3 7 4 . Protection 1 | . . . . . 6 1 . . Ballistic Gun 16 | . 28 27 28 28 16 9 7 3 Impact Weapon 2 | . . . . . . 4 4 7 Naked Turns . | . . . . . . . . . Heaviest Build 106 | 12 91 91 91 91 106 101 97 88 Greatest Support 42 | 20 20 20 20 20 42 42 20 34 Greatest Overweight (x) 28 | 1 4 4 4 4 4 9 28 4 Average Overweight (x) 3 | . 3 4 4 4 2 2 4 1 Largest Inventory Capacity 25 | 8 25 25 25 25 25 25 25 25 Average Capacity 24 | 7 23 25 25 25 25 25 25 21 Most Carried 25 | 7 13 17 21 24 25 25 25 23 Average Carried 20 | 3 11 15 19 21 21 24 23 19 Final Capacity 25 | 8 25 25 25 25 25 25 25 15 Final Carried 25 | 7 13 17 21 24 24 25 22 14 Class Distribution -------------------- 52% | Mutant 41% | Scavenger-Mutant 3% | Skirmisher Dominant Class ---------------- Mutant | -10/Materials Mutant | -10/Mines Mutant | -10/Exiles Mutant | -9/Mines Scavenger-Mutant | -8/Materials Scavenger-Mutant | -7/Factory Mutant | -7/Lower Caves Assassin | -7/Lower Caves Resources | -11 -10 -10 -10 -9 -8 -7 -7 -7 ----------- Run | Jun Mat Min Exi Min Mat Fac Low Low Matter Collected 2657 | 208 116 226 . 65 1031 771 197 43 Remotely . | . . . . . . . . . Salvage Created 3716 | 127 441 144 . 44 1210 1429 321 . Parts 242 | 9 36 21 . 2 88 81 5 . Haulers Intercepted 9 | . 1 . . . 5 3 . . Recyclers Shooed 2 | 1 . . . . . 1 . . Parts Field Recycled . | . . . . . . . . . Retrieved Matter . | . . . . . . . . . Parts Self-Destructed 5 | . . . . . . . 5 . Prevented 2 | . . . . . . . 2 . Kills | -11 -10 -10 -10 -9 -8 -7 -7 -7 ------- Run | Jun Mat Min Exi Min Mat Fac Low Low Combat Hostiles Destroyed 68 | . 11 6 . 1 22 20 8 . Melee 3 | . . . . . . 3 . . Guns 47 | . 11 6 . 1 13 14 2 . AOE 17 | . . . . . 9 2 6 . Classes Destroyed 13 | 2 4 1 . 1 3 1 1 . Worker 18 | . . 1 . . 3 14 . . Builder 1 | . . . . . 1 . . . Tunneler 8 | 2 . 2 . . . 4 . . Hauler 9 | . 1 . . . 5 3 . . Recycler 9 | 1 1 . . . 2 5 . . Operator 2 | . . . . . 2 . . . Watcher 4 | . 1 . . . 3 . . . Swarmer 28 | . 6 6 . 1 6 7 2 . Grunt 24 | . 5 . . . 11 5 3 . Sentry 7 | . . . . . 5 1 1 . Programmer 7 | . . . . . . 7 . . Zionite 1 | . . . . 1 . . . . Decomposer 3 | . . . . . . . 3 . Savage 2 | . . . . . . . 2 . Best Kill Streak 8 | 2 6 5 . 1 5 8 3 . Combat Bots Only 6 | . 6 5 . 1 4 4 3 . Max Kills in Single Turn 4 | 1 1 1 . 1 3 4 2 . Gunslinging . | . . . . . . . . . Exploded 2 | . . . . . 2 1 2 . Melee 1 | . . . . . . 1 . . Uniques/NPCs Destroyed . | . . . . . . . . . Combat | -11 -10 -10 -10 -9 -8 -7 -7 -7 -------- Run | Jun Mat Min Exi Min Mat Fac Low Low Damage Taken 4517 | . 254 163 . 60 1135 1523 791 591 Core 977 | . 82 25 . . 160 405 148 157 Absorbed by Shields . | . . . . . . . . . Regen/Repaired (Parts) 31 | . . . . . 11 20 . . Core Remaining (%) 75 | 100 . . . 57 70 . . . Volleys Fired 244 | 9 25 14 . 8 113 58 17 . Largest 2 | 2 2 2 . 2 2 2 2 . Hottest 61 | 40 46 46 . 46 58 58 61 . Shots Fired 458 | 18 50 28 . 16 202 109 34 1 Gun 429 | 18 50 28 . 16 182 106 28 1 Cannon . | . . . . . . . . . Launcher 29 | . . . . . 20 3 6 . Special . | . . . . . . . . . Kinetic 429 | 18 50 28 . 16 182 106 28 1 Thermal . | . . . . . . . . . Explosive 29 | . . . . . 20 3 6 . Electromagnetic . | . . . . . . . . . Robot Hit Streak 21 | 7 10 6 . 6 16 17 21 . Robot Miss Streak 7 | 1 3 2 . 7 4 3 1 . Penetration Max . | . . . . . . . . . Secondary Targets 1 | . . . . . 1 . . . Max Gunslinging Chain 1 | . . . . . 1 . . . Shots Hit Robots 328 | 12 28 14 . 5 136 106 25 2 Core Hits 166 | 7 16 9 . 2 64 50 18 . Critical Kills 6 | . . . . . . 6 . . Critical Parts Destroyed 11 | . . . . . . 8 3 . Critical Strikes 17 | . . . . . . 14 3 . Destroy 8 | . . . . . . 7 1 . Smash 9 | . . . . . . 7 2 . Melee Attacks 44 | . . . . . . 37 5 2 Impact 42 | . . . . . . 35 5 2 Slashing 2 | . . . . . . 2 . . Piercing . | . . . . . . . . . Sneak Attacks 18 | . . . . . . 15 3 . Combat Hostiles . | . . . . . . . . . Follow-up Attacks 3 | . . . . . . 3 . . Damage Inflicted 9321 | 101 416 224 . 90 3267 3980 1148 95 Guns 4874 | 101 416 224 . 90 2154 1460 429 . Cannons . | . . . . . . . . . Explosions 1921 | . . . . . 1113 489 319 . Melee 2526 | . . . . . . 2031 400 95 Ramming . | . . . . . . . . . Kinetic 4874 | 101 416 224 . 90 2154 1460 429 . Thermal . | . . . . . . . . . Explosive 1921 | . . . . . 1113 489 319 . Electromagnetic . | . . . . . . . . . Impact 2526 | . . . . . . 2031 400 95 Slashing . | . . . . . . . . . Piercing . | . . . . . . . . . Highest Corruption 28 | . . . . . . 4 28 28 Average Corruption 11 | . . . . . . 1 20 28 Corruption Purged . | . . . . . . . . . Corruption Blocked . | . . . . . . . . . Effects 79 | . . . . . . 21 49 9 Message Errors 17 | . . . . . . 4 12 1 Matter Fused 17 | . . . . . . 4 11 2 Heat Flow Errors 11 | . . . . . . 3 6 2 Energy Discharges 10 | . . . . . . 6 4 . Parts Fused 1 | . . . . . . . 1 . Data Loss (minor) 13 | . . . . . . 4 7 2 Data Loss (major) 1 | . . . . . . . 1 . Misfires 6 | . . . . . . . 5 1 Alerts 1 | . . . . . . . 1 . Misdirections 1 | . . . . . . . . 1 Weapon Failures 1 | . . . . . . . 1 . Overload Shots . | . . . . . . . . . Overflow Damage 1485 | . . . . . 30 1056 399 . Projectiles . | . . . . . . . . . Explosions 48 | . . . . . 30 18 . . Melee 1437 | . . . . . . 1038 399 . Knockbacks 8 | . . . . . . 6 . 2 Impact 8 | . . . . . . 6 . 2 Kinetic . | . . . . . . . . . Secondary . | . . . . . . . . . Self-Inflicted Damage 360 | . . . . . 47 267 46 . Shots 7 | . . . . . 2 4 1 . Rammed . | . . . . . . . . . Targets Rammed . | . . . . . . . . . Kicked . | . . . . . . . . . Crushed . | . . . . . . . . . Highest Temperature 243 | . 4 . . . 90 219 242 243 Average Temperature 43 | . 1 . . . 25 47 102 117 Received Heat Transfer 1014 | . 105 . . . 531 219 123 36 Siege Activations . | . . . . . . . . . Robots Corrupted . | . . . . . . . . . Combat Hostiles . | . . . . . . . . . Parts Fried 15 | . . . . . . 15 . . Impact Corruptions 46 | . . . . . . 32 14 . Robots Melted . | . . . . . . . . . Combat Hostiles . | . . . . . . . . . Parts Melted . | . . . . . . . . . Heat Transferred . | . . . . . . . . . Parts Sabotaged . | . . . . . . . . . Parts Stolen . | . . . . . . . . . Parts Stripped . | . . . . . . . . . Power Chain Reactions . | . . . . . . . . . Missiles Intercepted . | . . . . . . . . . Alert | -11 -10 -10 -10 -9 -8 -7 -7 -7 ------- Run | Jun Mat Min Exi Min Mat Fac Low Low Peak Influence 497 | 15 214 216 . 107 497 372 . . Initial 145 | . 9 61 . . 41 145 . . Average 159 | 6 73 74 . 55 207 207 . . Maximum Alert Level 2 | . 1 1 . . 2 1 . . Low Security (%) 59 | 100 95 72 . 100 43 49 . . Level 1 38 | . 4 27 . . 50 50 . . Level 2 1 | . . . . . 6 . . . Level 3 . | . . . . . . . . . Level 4 . | . . . . . . . . . Level 5 . | . . . . . . . . . High Security . | . . . . . . . . . Max Security . | . . . . . . . . . Squads Dispatched 16 | . 1 . . . 3 12 . . Investigation 4 | . 1 . . . 1 2 . . Extermination 6 | . . . . . . 6 . . Reinforcement 4 | . . . . . 2 2 . . Assault . | . . . . . . . . . Garrison 2 | . . . . . . 2 . . Intercept . | . . . . . . . . . Searches Triggered . | . . . . . . . . . Construction Impeded 1 | . . . . . . 1 . . Haulers Reinforced 1 | . . . . . . 1 . . Active Scanning Responses . | . . . . . . . . . Cargo Convoy Interrupts . | . . . . . . . . . Stealth | -11 -10 -10 -10 -9 -8 -7 -7 -7 --------- Run | Jun Mat Min Exi Min Mat Fac Low Low Distress Signals 4 | . 1 . . . 2 1 . . Communications Jammed . | . . . . . . . . . Distress Signals . | . . . . . . . . . Times Spotted 116 | . 16 7 . 4 50 29 8 2 Peak Tracking Total 6 | . 4 6 . 3 5 5 3 2 Tactical Retreats 5 | . 1 1 . 1 2 . . . Traps | -11 -10 -10 -10 -9 -8 -7 -7 -7 ------- Run | Jun Mat Min Exi Min Mat Fac Low Low Traps Triggered 9 | . 1 1 . . 1 6 . . Indirectly . | . . . . . . . . . Trap Hack Attempts . | . . . . . . . . . Triggered . | . . . . . . . . . Disarmed . | . . . . . . . . . Reprogrammed . | . . . . . . . . . Reused 2 | . . . . . 2 . . . Traps Extracted . | . . . . . . . . . Installed 3 | . . . . . 3 . . . Triggered 3 | . . . . . 2 . 1 . Most Traps Carried 3 | . . . . 3 3 . . . Exploded 3 | . . . . . 3 . . . Machines | -11 -10 -10 -10 -9 -8 -7 -7 -7 ---------- Run | Jun Mat Min Exi Min Mat Fac Low Low Machines Disabled 6 | . . . . 1 1 4 . . Max in Single Turn 2 | . . . . . 1 2 . . Garrison Access 1 | . . . . . . 1 . . Machines Repaired . | . . . . . . . . . Machines Sabotaged . | . . . . . . . . . Overloaded Fab Kills . | . . . . . . . . . Hacking | -11 -10 -10 -10 -9 -8 -7 -7 -7 --------- Run | Jun Mat Min Exi Min Mat Fac Low Low Machines Accessed 23 | . 3 1 1 . 8 10 . . Terminals 15 | . 3 . . . 6 6 . . Fabricators 2 | . . . . . . 2 . . Repair Stations 2 | . . . . . 1 1 . . Recycling Units . | . . . . . . . . . Scanalyzers 1 | . . . . . 1 . . . Garrison Access 1 | . . . . . . 1 . . Total Hacks 85 | . 9 1 23 . 28 24 . . Successful 57 | . 5 1 23 . 15 13 . . Failed 28 | . 4 . . . 13 11 . . Catastrophic 3 | . 3 . . . . . . . Database Lockouts . | . . . . . . . . . Manual 35 | . 8 . . . 14 13 . . Terminals 45 | . 9 . . . 20 16 . . Fabricators 5 | . . . . . . 5 . . Repair Stations 5 | . . . . . 3 2 . . Recycling Units . | . . . . . . . . . Scanalyzers 5 | . . . . . 5 . . . Garrison Access 1 | . . . . . . 1 . . Terminal Hacks 34 | . 2 1 23 . 6 2 . . Record 23 | . . . 23 . . . . . Part Schematic 1 | . . . . . 1 . . . Robot Analysis 1 | . . . . . . 1 . . Prototype ID Bank 4 | . 1 . . . 3 . . . Open Door 1 | . . 1 . . . . . . Level Access Points 1 | . . . . . 1 . . . Branch Access Points 1 | . . . . . . 1 . . Terminal Index 1 | . 1 . . . . . . . Unreport Threat 1 | . . . . . 1 . . . Fabricator Hacks 2 | . . . . . . 2 . . Load Schematic 1 | . . . . . . 1 . . Build 1 | . . . . . . 1 . . Repair Station Hacks 4 | . . . . . 2 2 . . Scan Component 2 | . . . . . 1 1 . . Repair 2 | . . . . . 1 1 . . Recycling Unit Hacks . | . . . . . . . . . Scanalyzer 2 | . . . . . 2 . . . Insert Component 1 | . . . . . 1 . . . Analyze 1 | . . . . . 1 . . . Garrison Access Hacks 1 | . . . . . . 1 . . Seal Access 1 | . . . . . . 1 . . Unauthorized Hacks 14 | . 3 . . . 5 6 . . Terminals 14 | . 3 . . . 5 6 . . Botnet 12 | . 2 . . . 4 6 . . Disrupt 1 | . . . . . 1 . . . Operators 1 | . 1 . . . . . . . Fabricators . | . . . . . . . . . Repair Stations . | . . . . . . . . . Recycling Units . | . . . . . . . . . Scanalyzers . | . . . . . . . . . Garrison Access . | . . . . . . . . . Data Cores Recovered . | . . . . . . . . . Used . | . . . . . . . . . Hacking Detections 19 | . 2 . . . 8 9 . . Full Trace Events 3 | . 1 . . . 1 1 . . Feedback Events . | . . . . . . . . . Feedback Blocked . | . . . . . . . . . Robot Schematics Acquired . | . . . . . . . . . Robots Built . | . . . . . . . . . Authchips . | . . . . . . . . . Time . | . . . . . . . . . Total Robot Build Rating . | . . . . . . . . . Part Schematics Acquired 2 | . . . . . 2 . . . Parts Built 1 | . . . . . . 1 . . Authchips . | . . . . . . . . . Time 204 | . . . . . . 204 . . Total Part Build Rating 8 | . . . . . . 8 . . Parts Repaired 2 | . . . . . 1 1 . . Time 134 | . . . . . 108 26 . . Parts Recycled . | . . . . . . . . . Recycled Matter . | . . . . . . . . . Retrieved Matter . | . . . . . . . . . Retrieved Components . | . . . . . . . . . Parts Scanalyzed 1 | . . . . . 1 . . . Part Schematics Acquired 1 | . . . . . 1 . . . Parts Damaged . | . . . . . . . . . Bothacking | -11 -10 -10 -10 -9 -8 -7 -7 -7 ------------ Run | Jun Mat Min Exi Min Mat Fac Low Low Used RIF Installer . | . . . . . . . . . Robots Hacked . | . . . . . . . . . Non-combat . | . . . . . . . . . Combat . | . . . . . . . . . Robot Hacks Applied . | . . . . . . . . . Relay Couplers Released . | . . . . . . . . . Fabnet Peak Effective % . | . . . . . . . . . Robots Rewired . | . . . . . . . . . Allies Hacked . | . . . . . . . . . Hacks Repelled . | . . . . . . . . . Allies | -11 -10 -10 -10 -9 -8 -7 -7 -7 -------- Run | Jun Mat Min Exi Min Mat Fac Low Low Total Allies 2 | . . . . 2 . . . . Largest Group 2 | . . . . 2 1 . . . Highest-Rated Group 42 | . . . . 42 31 . . . Highest-Rated Ally 31 | . . . . 31 31 . . . Total Orders . | . . . . . . . . . Ally Attacks 23 | . . . . 11 12 . . . Total Damage 255 | . . . . 107 148 . . . Kills 4 | . . . . 2 2 . . . Allies Corrupted . | . . . . . . . . . Allies Melted . | . . . . . . . . . Intel | -11 -10 -10 -10 -9 -8 -7 -7 -7 ------- Run | Jun Mat Min Exi Min Mat Fac Low Low Robot Analysis Total 1 | . . . . . . 1 . . Derelict Logs Recovered 3 | . . 1 . 1 . . 1 . Drone Launches . | . . . . . . . . . Drone Recoveries . | . . . . . . . . . Exploration | -11 -10 -10 -10 -9 -8 -7 -7 -7 ------------- Run | Jun Mat Min Exi Min Mat Fac Low Low Turns Passed 8009 | 82 686 1064 234 382 1866 2348 1186 161 Spaces Moved 4524 | 49 432 708 165 249 1130 1446 291 54 Core 6 | 4 . . . . . . 2 . Treads 158 | . . . . . . . 140 18 Legs . | . . . . . . . . . Wheels 4324 | 45 432 708 165 249 1130 1446 149 . Hover 36 | . . . . . . . . 36 Flight . | . . . . . . . . . Fastest Speed 50 | 50 80 140 140 140 110 110 140 52 Average Speed 138 | 80 129 140 140 140 117 121 312 211 Slowest Speed 1450 | 95 140 140 140 140 145 215 1450 480 Overloaded Moves . | . . . . . . . . . Propulsion Burnouts . | . . . . . . . . . Robots Hopped . | . . . . . . . . . Cave-ins Triggered . | . . . . . . . . . Exploration Rate (%) 47 | 3 49 98 53 58 65 43 49 12 Regions Visited 8 Branch Regions 5 Pre-discovered Areas 3 | . . 1 1 . . . 1 . Known Exits Taken 2 | . . . . . 1 1 . . Unknown Exits Taken 6 | 1 1 1 1 1 . . 1 . Scrap Searched 4 | . . 1 . 2 . . . 1 Spaces Dug 12 | . . . . . . 11 1 . Terrain Destroyed 220 | . . . . . 102 72 46 . Melee 6 | . . . . . . 5 1 . Projectile . | . . . . . . . . . AOE 214 | . . . . . 102 67 45 . Terrain Rammed . | . . . . . . . . . Walls Destroyed . | . . . . . . . . . Machines Disabled . | . . . . . . . . . Actions | -11 -10 -10 -10 -9 -8 -7 -7 -7 --------- Run | Jun Mat Min Exi Min Mat Fac Low Low Total 5808 | 76 510 753 168 266 1519 1882 535 99 Wait 724 | . 33 20 . 7 197 231 206 30 Move 4516 | 48 431 707 164 248 1129 1445 290 54 Hop . | . . . . . . . . . Pick Up 118 | 13 12 7 4 3 34 40 3 2 Fast Attach . | . . . . . . . . . Attach 58 | 6 1 1 . . 11 22 7 10 Detach 6 | . . . . . . 5 1 . Swap 36 | . 2 2 . . 10 17 5 . Drop 56 | . 6 2 . . 22 24 1 1 Fire 244 | 9 25 14 . 8 113 58 17 . Melee 39 | . . . . . . 32 5 2 Ram . | . . . . . . . . . Kick . | . . . . . . . . . Crush . | . . . . . . . . . Escape Stasis 8 | . . . . . . 8 . . Rewire . | . . . . . . . . . Trap 3 | . . . . . 3 . . . Miscellaneous . | . . . . . . . . . Route ------- -11/Junkyard -10/Materials -10/Mines (discovered 3 exits: [*Mat x2] / *Exi) -10/Exiles -9/Mines -8/Materials (discovered 3 exits: *Fac x3) -7/Factory (discovered 3 exits: *Fac / *Low x2) -7/Lower Caves -7/Lower Caves (discovered 1 exit: Fac) History --------- Turn | Location | Event 18 | -11/Junkyard | Discovered new exit (range 16) 83 | -11/Junkyard | Entered Materials 307 | -10/Materials | Build established: Mutant 317 | -10/Materials | Discovered new exit (range 16) 769 | -10/Materials | Entered Mines 776 | -10/Mines | Received a Rocket Launcher from a helpful Derelict 948 | -10/Mines | Met a Derelict who couldn't figure out how to use a Trap Extractor 1111 | -10/Mines | Discovered new exit (range 4) 1160 | -10/Mines | Discovered new exit (range 10) 1330 | -10/Mines | Learned location of Storage (-9) 1425 | -10/Mines | Found a damaged Exp. Sensor Array with a note attached 1428 | -10/Mines | Found Prototype Device 1545 | -10/Mines | Learned Materials security intel 1681 | -10/Mines | Deemed a non-threat by the Exiles lab entrance 1828 | -10/Mines | Discovered new exit (range 5) 1833 | -10/Mines | Entered Exiles 1871 | -10/Exiles | Met 8R-AWN 1891 | -10/Exiles | Met EX-HEX 1946 | -10/Exiles | Met EX-DEC 1969 | -10/Exiles | Learned location of Zion (-6) 2056 | -10/Exiles | Discovered new exit (range 10) 2067 | -10/Exiles | Entered Mines 2094 | -9/Mines | Learned Materials terminal intel 2405 | -9/Mines | Found a hidden stash of uninstalled traps 2426 | -9/Mines | Discovered new exit (range 9) 2449 | -9/Mines | Entered Materials 2449 | -8/Materials | Accompanied by 1 ally 2449 | -8/Materials | Evolved 4 slots: Propulsion x2, Utility x2 2451 | -8/Materials | Loaded intel: 12 terminal locations 2454 | -8/Materials | Led the pair of lost Derelicts to an unsafe place 2757 | -8/Materials | Build established: Scavenger-Mutant 2917 | -8/Materials | Identified exit to Factory 3227 | -8/Materials | Lost 3 parts (2n1u) 3431 | -8/Materials | Build established: Mutant 3525 | -8/Materials | Identified Exp. Sensor Array 3829 | -8/Materials | Build established: Scavenger-Mutant 3853 | -8/Materials | Repaired Exp. Sensor Array 4233 | -8/Materials | Build established: Mutant 4315 | -8/Materials | Entered Factory 4315 | -7/Factory | Evolved 2 slots: Utility x2 4778 | -7/Factory | Garrison activated, responded to threat 5059 | -7/Factory | Build established: Scavenger-Mutant 5141 | -7/Factory | Lost 3 parts (1p2n) 5245 | -7/Factory | Garrison activated, responded to threat 5501 | -7/Factory | Lost 3 parts (1p2n) 5531 | -7/Factory | Repaired Corrupted Adv. Weight Redist. System 5922 | -7/Factory | Fabricated Exp. Sensor Array (x1) 6081 | -7/Factory | Discovered new exit (range 13) 6091 | -7/Factory | Identified exit to Factory 6136 | -7/Factory | Identified exit to Lower Caves 6474 | -7/Factory | Core integrity fell below 50% 6663 | -7/Factory | Entered Lower Caves 7025 | -7/Lower Caves | System corruption reached 10% 7070 | -7/Lower Caves | Lost 7 parts (1p2n4u) 7447 | -7/Lower Caves | Attracted the attention of an 0b10 checkpoint 7704 | -7/Lower Caves | Discovered new exit (range 11) 7757 | -7/Lower Caves | Build established: Mutant 7849 | -7/Lower Caves | Entered another Lower Caves area 7932 | -7/Lower Caves | Spotted B-75 Beast 7934 | -7/Lower Caves | Core integrity fell below 20% 7967 | -7/Lower Caves | Discovered exit to Factory (range 13) 7987 | -7/Lower Caves | Lost 7 parts (1p4n1u1w) 8010 | -7/Lower Caves | Destroyed by H-55 Commando with Assault Rifle Last Messages --------------- 07952_ 1D-4EV(k) breaks down the debris. 07953_ 1D-4EV(k) destroyed. 07953_ Acquired 11 matter. 07954_ Acquired Wheel. 07956_ Acquired 3 matter. 07956_ Lgt. Angular Momentum Engine destroyed. 07959_ Acquired 4 matter. 07961_ Acquired 3 matter. 07962_ Acquired 4 matter. 07967_ EXIT=FOUND: FACTORY 07970_ System corrupted: Heat flow error (+212). 07987_ Acquired 3 matter. 07992_ System corrupted: Component data lost. 07998_ Slug penetrates Wall. 07998_ L9-DCL(k) destroyed. 08004_ Penetrated by Slug. 08005_ H-55 Commando knocked back. 08008_ System corrupted: Matter fused (-7). 08009_ H-55 Commando knocked back. 08010_ Penetrated by Slug. Map ----- +----------------------------------------------------+ | ?????? ####?#?####### #?????????? | | ???? ######### ### #?????????? | | ?? #### ######?????????? | | ?? #?#####?##??#????????? | | ? ### ## #####??##?????#???????? | | ? #?#### ######?#####??????#????????? | | ####### ###?#######???##?#??????????? | | ####### #####?## ??#?##?#?##????????? | | ?? ####### #####?# ? ###?##?#?????????? | | ???? ####### ####### ?? ###?????????????? | | ? ? ###### ### ## ?? ??#???????????? | | ?? ? ?## "## ## ## ?#????????????? | | ? ## "# ## ? ?????????????? | | ???## ### ###? ? ? ???????????? | | ???#### !% ### ? ? ???????????? | | ?##?### % ### ## ? ??????????? | | ? ##??# % ### ?????????????? | | ??????### ###### # #####?#? ????????? | | ?? ??#?## #" ####### ##### #####?#???????????? | | ? ####### "## " ##### #####?#??###?????#??????? | | ?#?#??### ### "###?## ##### ?##?###?#????????? | | ?#?#### ### " #### ? ?????#?????????? | | ????#?### ###### ## ????##?##??##??????? | | ? ?#?#### ##?####; h #### ?< ?###??#???????? | | ???###?## ###### ###?##? ? ##?##?????????? | | ?##??###% ##### @##### ??#?????#??????? | | ??###??## ### ### ##? ? ? ????? | | ???#?#### #### ## ??? ????????? | | ??? ?#### ####### ## #?#?#?????????? | | ??????##########?##?# % ### ? #####?????????? | | ??????##??#?#?####?##### #### ? #??##?#????????? | | ??????????##?##?##?##?#######???#?#?##?#?#???????? | | ???#????########??###?##?#??#####?##?#???????????? | | ?#??????#??##?#?##?###?#?#########???#?#??#??????? | | ???#?????######?#?#??####?###?##?#??#?#??????????? | | ?????#?????#?#?###?##############?#?#?#??????????? | | ?????????????#???#######?#?#?????#??##???????????? | | ????????#??#???##?####??##???##?#?####???????????? | | ?????#?#???#?###?###?##??###?#??#?#?#????????????? | | ??????????????#####?#?#####??#?#???##????????????? | | ????#????????#????#?###??#?????#???#?????????????? | | ?????????????????#??#??##?#?#?####???????????????? | | ???????????????????#???????#?????????????????????? | | ?????????????????????????????????????????????????? | | ?????????????????????????????????????????????????? | | ?????????????????????????????????????????????????? | | ?????????????????????????????????????????????????? | | ?????????????????????????????????????????????????? | | ?????????????????????????????????????????????????? | | ?????????????????????????????????????????????????? | +----------------------------------------------------+ Best States ------------- Heat Dissipation 34 Energy Generation 18 Energy Capacity 290 Matter Stores 300 Matter Capacity 300 Sight Range 16 Robot Scan Range 20 Terrain Scan Range 16 Terrain Scan Density 210 Additional Mass Support 9 Armor Coverage 600 Resistance: EM 15 Evasion (%) 51 Targeting Accuracy 8 Target Analysis 5 Recoil Reduction 1 Offensive Hacking 10 Item Schematics ----------------- Exp. Sensor Array | -8/Materials | Scanalyzed Lrg. Storage Unit | -8/Materials | Hacked Robot Schematics ------------------ None Fabricated ------------ Exp. Sensor Array | x1 | -7/Factory Alien Tech Used ----------------- None Achievements -------------- None Challenges ------------ None Game ------ Seed UtilitySpreadField Manual? 0 Play Time 00:55:20 Cumulative 323.1 hours Start 2023.10.23 @ 11:27:11 End 2023.10.23 @ 12:31:10 Sessions 1 Manual Loads 0 Difficulty Rogue Special Mode None Game No. 365 Rogue 365 Adventurer 0 Explorer 0 Win Type - Total 6 Types 3/1/1/1/0/0/0/0/0 Lore% 65 Gallery% 79 Achievement% 67 Wizard Run 0 Options --------- ASCII 0 Keyboard 0 Movement Numpad Keybinds 0 Fullscreen 1 Font 24/Smallcaps Map View 76x50 Tactical HUD 1 Map Filters NONE Filters NONE Steam 1 RUN: 1bd887af-05e5-4223-a0d5-c9c9270b2b8d